fUST/lending_fUST_20250819
["ID","MTS","AMOUNT","RATE_DAILY","PERIOD"]
[380112999,1755549052069,-480.0,0.0002,2]
[380113000,1755549052078,-480.0,0.0002,2]
[380113001,1755549052088,-480.0,0.0002,2]
[380113002,1755549052097,-480.0,0.0002,2]
[380113003,1755549052106,-488.13,0.0002,2]
[380113004,1755549052116,-480.0,0.0002,2]
[380113005,1755549052199,-421.47949891,0.0002,2]
[380113006,1755549052208,-480.0,0.0002,2]
[380113007,1755549052218,-480.0,0.0002,2]
[380113008,1755549052227,-480.0,0.0002,2]
[380113009,1755549052237,-480.0,0.0002,2]
[380113010,1755549052246,-480.0,0.0002,2]
[380113011,1755549052256,-480.0,0.0002,2]
[380113012,1755549052266,-480.0,0.0002,2]
[380113013,1755549052275,-480.0,0.0002,2]
[380113014,1755549052284,-480.0,0.0002,2]
[380113015,1755549052293,-480.0,0.0002,2]
[380113016,1755549052303,-460.0,0.0002,2]
[380113017,1755549052313,-480.0,0.0002,2]
[380113018,1755549052323,-500.0,0.0002,2]
[380113019,1755549052332,-480.0,0.0002,2]
[380113020,1755549052342,-480.0,0.0002,2]
[380113021,1755549052352,-480.0,0.0002,2]
[380113022,1755549052361,-480.0,0.0002,2]
[380113023,1755549052370,-480.0,0.0002,2]
[380113024,1755549052379,-480.0,0.0002,2]
[380113025,1755549052389,-480.0,0.0002,2]
[380113026,1755549052398,-480.0,0.0002,2]
[380113027,1755549052407,-280.67801479,0.0002,2]
[380113028,1755549052416,-480.0,0.0002,2]
[380113029,1755549052426,-480.0,0.0002,2]
[380113030,1755549052435,-480.0,0.0002,2]
[380113031,1755549052445,-328.41490144,0.0002,2]
[380113032,1755549052454,-160.81,0.0002,2]
[380113033,1755549052463,-480.0,0.0002,2]
[380113034,1755549052473,-480.0,0.0002,2]
[380113035,1755549052482,-480.0,0.0002,2]
[380113036,1755549052492,-480.0,0.0002,2]
[380113037,1755549052501,-480.0,0.0002,2]
[380113038,1755549052512,-424.55676424,0.0002,2]
[380113039,1755549052521,-568.68,0.0002,2]
[380113040,1755549052530,-480.0,0.0002,2]
[380113041,1755549052540,-460.0,0.0002,2]
[380113042,1755549052549,-365.3269916,0.0002,2]
[380113043,1755549052558,-480.0,0.0002,2]
[380113044,1755549052568,-480.0,0.0002,2]
[380113045,1755549052576,-480.0,0.0002,2]
[380113046,1755549052585,-460.0,0.0002,2]
[380113047,1755549052594,-480.0,0.0002,2]
[380113048,1755549052604,-591.67,0.0002,2]
[380113049,1755549052614,-480.0,0.0002,2]
[380113050,1755549052623,-413.77504946,0.0002,2]
[380113051,1755549052633,-480.0,0.0002,2]
[380113052,1755549052642,-480.0,0.0002,2]
[380113053,1755549052651,-598.94,0.0002,2]
[380113054,1755549052660,-480.0,0.0002,2]
[380113055,1755549052670,-480.0,0.0002,2]
[380113056,1755549052679,-446.0449356,0.0002,2]
[380113057,1755549052689,-480.0,0.0002,2]
[380113058,1755549052699,-531.53,0.0002,2]
[380113059,1755549052708,-480.0,0.0002,2]
[380113060,1755549052717,-480.0,0.0002,2]
[380113061,1755549052727,-480.0,0.0002,2]
[380113062,1755549052737,-473.42667314,0.0002,2]
[380113063,1755549052746,-480.0,0.0002,2]
[380113064,1755549052755,-480.0,0.0002,2]
[380113065,1755549052765,-480.0,0.0002,2]
[380113066,1755549052774,-480.0,0.0002,2]
[380113067,1755549052784,-480.0,0.0002,2]
[380113068,1755549052793,-532.75,0.0002,2]
[380113069,1755549052803,-2519.6,0.0002,2]
[380113070,1755549052812,-480.0,0.0002,2]
[380113071,1755549052822,-480.0,0.0002,2]
[380113072,1755549052831,-480.0,0.0002,2]
[380113073,1755549052841,-480.0,0.0002,2]
[380113074,1755549052850,-400.0,0.0002,2]
[380113075,1755549052860,-427.32378351,0.0002,2]
[380113076,1755549052869,-464.01011507,0.0002,2]
[380113077,1755549052879,-480.0,0.0002,2]
[380113078,1755549052889,-480.0,0.0002,2]
[380113079,1755549052899,-480.0,0.0002,2]
[380113080,1755549052908,-694.48,0.0002,2]
[380113081,1755549052918,-480.0,0.0002,2]
[380113082,1755549052928,-480.0,0.0002,2]
[380113083,1755549052938,-480.0,0.0002,2]
[380113084,1755549052948,-284.58224267,0.0002,2]
[380113085,1755549052957,-553.82,0.0002,2]
[380113086,1755549052967,-480.0,0.0002,2]
[380113087,1755549052977,-480.0,0.0002,2]
[380113088,1755549052986,-480.0,0.0002,2]
[380113089,1755549052995,-480.0,0.0002,2]
[380113090,1755549053005,-480.0,0.0002,2]
[380113091,1755549053014,-697.94,0.0002,2]
[380113092,1755549053024,-480.0,0.0002,2]
[380113093,1755549053033,-440.0,0.0002,2]
[380113094,1755549053042,-480.0,0.0002,2]
[380113095,1755549053052,-681.63,0.0002,2]
[380113096,1755549053061,-480.0,0.0002,2]
[380113097,1755549053070,-480.0,0.0002,2]
[380113098,1755549053080,-480.0,0.0002,2]
[380113099,1755549053089,-480.0,0.0002,2]
[380113100,1755549053098,-545.43171473,0.0002,2]
[380113101,1755549053107,-231.06741361,0.0002,2]
[380113102,1755549053116,-480.0,0.0002,2]
[380113103,1755549053126,-480.0,0.0002,2]
[380113104,1755549053135,-480.0,0.0002,2]
[380113105,1755549053145,-547.29,0.0002,2]
[380113106,1755549053153,-484.61641326,0.0002,2]
[380113107,1755549053167,-480.0,0.0002,2]
[380113108,1755549053176,-2307.81,0.0002,2]
[380113109,1755549053185,-480.0,0.0002,2]
[380113110,1755549053194,-480.0,0.0002,2]
[380113111,1755549053204,-480.0,0.0002,2]
[380113112,1755549053214,-480.0,0.0002,2]
[380113113,1755549053223,-975.87,0.0002,2]
[380113114,1755549053232,-480.0,0.0002,2]
[380113115,1755549053242,-579.91,0.0002,2]
[380113116,1755549053252,-480.0,0.0002,2]
[380113117,1755549053262,-480.0,0.0002,2]
[380113118,1755549053271,-15243.75810563,0.0002,2]
[380113119,1755549053280,-480.0,0.0002,2]
[380113120,1755549053289,-5132.0554021,0.0002,2]
[380113121,1755549053298,-254.89733024,0.0002,2]
[380113122,1755549053308,-983.25,0.0002,2]
[380113123,1755549053317,-480.0,0.0002,2]
[380113124,1755549053327,-480.0,0.0002,2]
[380113125,1755549053336,-480.0,0.0002,2]
[380113126,1755549053346,-480.0,0.0002,2]
[380113127,1755549053354,-480.0,0.0002,2]
[380113128,1755549053364,-192.91481767,0.0002,2]
[380113129,1755549053373,-480.0,0.0002,2]
[380113130,1755549053382,-480.0,0.0002,2]
[380113131,1755549053392,-480.0,0.0002,2]
[380113132,1755549053401,-480.0,0.0002,2]
[380113133,1755549053410,-480.0,0.0002,2]
[380113134,1755549053419,-480.0,0.0002,2]
[380113135,1755549053428,-480.0,0.0002,2]
[380113136,1755549053437,-480.0,0.0002,2]
[380113137,1755549053446,-480.0,0.0002,2]
[380113138,1755549053455,-480.0,0.0002,2]
[380113139,1755549053464,-480.0,0.0002,2]
[380113140,1755549053474,-1116.2,0.0002,2]
[380113141,1755549053483,-480.0,0.0002,2]
[380113142,1755549053492,-480.0,0.0002,2]
[380113143,1755549053502,-508.63,0.0002,2]
[380113144,1755549053511,-352.76,0.0002,2]
[380113145,1755549053522,-480.0,0.0002,2]
[380113146,1755549053531,-480.0,0.0002,2]
[380113147,1755549053541,-480.0,0.0002,2]
[380113148,1755549053550,-460.0,0.0002,2]
[380113149,1755549053560,-604.86,0.0002,2]
[380113150,1755549053569,-480.0,0.0002,2]
[380113151,1755549053578,-480.0,0.0002,2]
[380113152,1755549053659,-480.0,0.0002,2]
[380113153,1755549053669,-274.55,0.0002,2]
[380113154,1755549053678,-480.0,0.0002,2]
[380113155,1755549053687,-480.0,0.0002,2]
[380113156,1755549053696,-480.0,0.0002,2]
[380113157,1755549053706,-480.0,0.0002,2]
[380113158,1755549053716,-463.1,0.0002,2]
[380113159,1755549053724,-480.0,0.0002,2]
[380113160,1755549053734,-342.42,0.0002,2]
[380113161,1755549053743,-480.0,0.0002,2]
[380113162,1755549053752,-480.0,0.0002,2]
[380113163,1755549053762,-480.0,0.0002,2]
[380113164,1755549053771,-480.0,0.0002,2]
[380113165,1755549053780,-480.0,0.0002,2]
[380113166,1755549053789,-480.0,0.0002,2]
[380113167,1755549053798,-480.0,0.0002,2]
[380113168,1755549053807,-1719.49,0.0002,2]
[380113169,1755549053817,-480.0,0.0002,2]
[380113170,1755549053826,-480.0,0.0002,2]
[380113171,1755549053835,-480.0,0.0002,2]
[380113172,1755549053844,-480.0,0.0002,2]
[380113173,1755549053854,-701.96,0.0002,2]
[380113174,1755549053863,-480.0,0.0002,2]
[380113175,1755549053872,-480.0,0.0002,2]
[380113176,1755549053881,-483.13500043,0.0002,2]
[380113177,1755549053890,-480.0,0.0002,2]
[380113178,1755549053899,-480.0,0.0002,2]
[380113179,1755549053909,-480.0,0.0002,2]
[380113180,1755549053919,-480.0,0.0002,2]
[380113181,1755549053928,-267.29494168,0.0002,2]
[380113182,1755549053937,-484.3927932,0.0002,2]
[380113183,1755549053946,-480.0,0.0002,2]
[380113184,1755549053956,-428.98590075,0.00020021,2]
[380113185,1755549053965,-1000.0,0.00020173,2]
[380113186,1755549053974,-167.702469,0.00020187,2]
[380113187,1755549053984,-480.0,0.00020273,2]
[380113188,1755549053993,-480.0,0.00020273,2]
[380113189,1755549054003,-480.0,0.00020273,2]
[380113190,1755549054013,-480.0,0.00020273,2]
[380113191,1755549054022,-480.0,0.00020273,2]
[380113192,1755549054031,-480.0,0.00020273,2]
[380113193,1755549054040,-480.0,0.00020273,2]
[380113194,1755549054050,-480.0,0.00020273,2]
[380113195,1755549054059,-249.34815895,0.00020273,2]
[380113196,1755549054068,-480.0,0.00020273,2]
[380113197,1755549054078,-480.0,0.00020273,2]
[380113198,1755549054087,-480.0,0.00020273,2]
[380113199,1755549054096,-483.58238671,0.00020273,2]
[380113200,1755549054105,-480.0,0.00020273,2]
[380113201,1755549054114,-480.0,0.00020273,2]
[380113202,1755549054124,-480.0,0.00020273,2]
[380113203,1755549054133,-480.0,0.00020273,2]
[380113204,1755549054142,-460.0,0.00020273,2]
[380113205,1755549054152,-480.0,0.00020273,2]
[380113206,1755549054168,-489.62983094,0.00020273,2]
[380113207,1755549054177,-218.46,0.00020273,2]
[380113208,1755549054187,-480.0,0.00020273,2]
[380113209,1755549054199,-480.0,0.00020273,2]
[380113210,1755549054208,-480.0,0.00020273,2]
[380113211,1755549054218,-480.0,0.00020273,2]
[380113212,1755549054228,-480.0,0.00020273,2]
[380113213,1755549054242,-480.0,0.00020273,2]
[380113214,1755549054251,-480.0,0.00020273,2]
[380113215,1755549054261,-480.0,0.00020273,2]
[380113216,1755549054270,-480.0,0.00020273,2]
[380113217,1755549054279,-480.0,0.00020273,2]
[380113218,1755549054289,-480.0,0.00020273,2]
[380113219,1755549054299,-442.17896654,0.00020273,2]
[380113220,1755549054307,-480.0,0.00020273,2]
[380113221,1755549054317,-480.0,0.00020273,2]
[380113222,1755549054326,-480.0,0.00020273,2]
[380113223,1755549054335,-480.0,0.00020273,2]
[380113224,1755549054345,-480.0,0.00020273,2]
[380113225,1755549054354,-464.39061299,0.00020273,2]
[380113226,1755549054363,-480.0,0.00020273,2]
[380113227,1755549054372,-480.0,0.00020273,2]
[380113228,1755549054381,-480.0,0.00020273,2]
[380113229,1755549054390,-480.0,0.00020273,2]
[380113230,1755549054399,-480.0,0.00020273,2]
[380113231,1755549054409,-480.0,0.00020273,2]
[380113232,1755549054419,-362.36,0.00020273,2]
[380113233,1755549054428,-480.0,0.00020273,2]
[380113234,1755549054437,-480.0,0.00020273,2]
[380113235,1755549054446,-480.0,0.00020273,2]
[380113236,1755549054456,-480.0,0.00020273,2]
[380113237,1755549054465,-480.0,0.00020273,2]
[380113238,1755549054474,-480.0,0.00020273,2]
[380113239,1755549054483,-480.0,0.00020273,2]
[380113240,1755549054492,-2519.6,0.00020273,2]
[380113241,1755549054501,-480.0,0.00020273,2]
[380113242,1755549054511,-400.0,0.00020273,2]
[380113243,1755549054520,-480.0,0.00020273,2]
[380113244,1755549054529,-480.0,0.00020273,2]
[380113245,1755549054539,-398.28,0.00020273,2]
[380113246,1755549054548,-480.0,0.00020273,2]
[380113247,1755549054558,-480.0,0.00020273,2]
[380113248,1755549054567,-694.48,0.00020273,2]
[380113249,1755549054576,-480.0,0.00020273,2]
[380113250,1755549054585,-466.67517717,0.00020273,2]
[380113251,1755549054594,-480.0,0.00020273,2]
[380113252,1755549054603,-553.82,0.00020273,2]
[380113253,1755549054612,-480.0,0.00020273,2]
[380113254,1755549054621,-480.0,0.00020273,2]
[380113255,1755549054631,-480.0,0.00020273,2]
[380113256,1755549054640,-459.61109572,0.00020273,2]
[380113257,1755549054649,-480.0,0.00020273,2]
[380113258,1755549054659,-697.94,0.00020273,2]
[380113259,1755549054668,-480.0,0.00020273,2]
[380113260,1755549054678,-480.0,0.00020273,2]
[380113261,1755549054687,-681.63,0.00020273,2]
[380113262,1755549054697,-480.0,0.00020273,2]
[380113263,1755549054706,-175.47,0.00020273,2]
[380113264,1755549054715,-480.0,0.00020273,2]
[380113265,1755549054725,-480.0,0.00020273,2]
[380113266,1755549054735,-480.0,0.00020273,2]
[380113267,1755549054746,-460.0,0.00020273,2]
[380113268,1755549054755,-547.29,0.00020273,2]
[380113269,1755549054765,-480.0,0.00020273,2]
[380113270,1755549054774,-2307.81,0.00020273,2]
[380113271,1755549054783,-480.0,0.00020273,2]
[380113272,1755549054792,-480.0,0.00020273,2]
[380113273,1755549054801,-480.0,0.00020273,2]
[380113274,1755549054811,-975.87,0.00020273,2]
[380113275,1755549054820,-480.0,0.00020273,2]
[380113276,1755549054829,-603.11,0.00020273,2]
[380113277,1755549054838,-579.91,0.00020273,2]
[380113278,1755549054848,-480.0,0.00020273,2]
[380113279,1755549054857,-366.52,0.00020273,2]
[380113280,1755549054866,-480.0,0.00020273,2]
[380113281,1755549054876,-983.25,0.00020273,2]
[380113282,1755549054885,-480.0,0.00020273,2]
[380113283,1755549054894,-480.0,0.00020273,2]
[380113284,1755549054904,-480.0,0.00020273,2]
[380113285,1755549054913,-332.17744501,0.00020273,2]
[380113286,1755549054923,-480.0,0.00020273,2]
[380113287,1755549054996,-480.0,0.00020273,2]
[380113288,1755549055012,-480.0,0.00020273,2]
[380113289,1755549055021,-480.0,0.00020273,2]
[380113290,1755549055031,-480.0,0.00020273,2]
[380113291,1755549055040,-447.36236777,0.00020273,2]
[380113292,1755549055049,-480.0,0.00020273,2]
[380113293,1755549055059,-480.0,0.00020273,2]
[380113294,1755549055068,-480.0,0.00020273,2]
[380113295,1755549055078,-1116.2,0.00020273,2]
[380113296,1755549055087,-480.0,0.00020273,2]
[380113297,1755549055097,-534.51918852,0.00020273,2]
[380113298,1755549055107,-508.63,0.00020273,2]
[380113299,1755549055117,-480.0,0.00020273,2]
[380113300,1755549055126,-480.0,0.00020273,2]
[380113301,1755549055136,-320.0,0.00020273,2]
[380113302,1755549055145,-604.86,0.00020273,2]
[380113303,1755549055155,-480.0,0.00020273,2]
[380113304,1755549055168,-480.0,0.00020273,2]
[380113305,1755549055178,-411.76,0.00020273,2]
[380113306,1755549055188,-480.0,0.00020273,2]
[380113307,1755549055198,-480.0,0.00020273,2]
[380113308,1755549055209,-480.0,0.00020273,2]
[380113309,1755549055220,-480.0,0.00020273,2]
[380113310,1755549055230,-480.0,0.00020273,2]
[380113311,1755549055243,-480.0,0.00020273,2]
[380113312,1755549055253,-480.0,0.00020273,2]
[380113313,1755549055264,-480.0,0.00020273,2]
[380113314,1755549055273,-480.0,0.00020273,2]
[380113315,1755549055283,-480.0,0.00020273,2]
[380113316,1755549055292,-1719.49,0.00020273,2]
[380113317,1755549055301,-480.0,0.00020273,2]
[380113318,1755549055310,-480.0,0.00020273,2]
[380113319,1755549055320,-480.0,0.00020273,2]
[380113320,1755549055329,-165.70426443,0.00020273,2]
[380113321,1755549055339,-701.96,0.00020273,2]
[380113322,1755549055349,-480.0,0.00020273,2]
[380113323,1755549055358,-480.0,0.00020273,2]
[380113324,1755549055367,-480.0,0.00020273,2]
[380113325,1755549055376,-480.0,0.00020273,2]
[380113326,1755549055386,-480.0,0.00020273,2]
[380113327,1755549055396,-480.0,0.00020273,2]
[380113328,1755549055407,-480.0,0.00020273,2]
[380113329,1755549055416,-2967.29054176,0.00020316,2]
[380113330,1755549055426,-1200.0,0.00020318,2]
[380113331,1755549055436,-1000.0,0.00020321,2]
[380113332,1755549055446,-480.0,0.00020547,2]
[380113333,1755549055456,-480.0,0.00020547,2]
[380113334,1755549055465,-480.0,0.00020547,2]
[380113335,1755549055474,-464.74788078,0.00020547,2]
[380113336,1755549055484,-440.0,0.00020547,2]
[380113337,1755549055494,-480.0,0.00020547,2]
[380113338,1755549055503,-440.0,0.00020547,2]
[380113339,1755549055513,-480.0,0.00020547,2]
[380113340,1755549055522,-480.0,0.00020547,2]
[380113341,1755549055531,-480.0,0.00020547,2]
[380113342,1755549055541,-420.0,0.00020547,2]
[380113343,1755549055551,-480.0,0.00020547,2]
[380113344,1755549055560,-480.0,0.00020547,2]
[380113345,1755549055570,-480.0,0.00020547,2]
[380113346,1755549055580,-485.79175392,0.00020547,2]
[380113347,1755549055589,-480.0,0.00020547,2]
[380113348,1755549055600,-480.0,0.00020547,2]
[380113349,1755549055610,-480.0,0.00020547,2]
[380113350,1755549055619,-499.26651427,0.00020547,2]
[380113351,1755549055629,-480.0,0.00020547,2]
[380113352,1755549055638,-480.0,0.00020547,2]
[380113353,1755549055648,-480.0,0.00020547,2]
[380113354,1755549055657,-480.0,0.00020547,2]
[380113355,1755549055666,-480.0,0.00020547,2]
[380113356,1755549055676,-480.0,0.00020547,2]
[380113357,1755549055686,-480.0,0.00020547,2]
[380113358,1755549055695,-480.0,0.00020547,2]
[380113359,1755549055704,-520.0,0.00020547,2]
[380113360,1755549055714,-480.0,0.00020547,2]
[380113361,1755549055723,-480.0,0.00020547,2]
[380113362,1755549055733,-480.0,0.00020547,2]
[380113363,1755549055743,-480.0,0.00020547,2]
[380113364,1755549055752,-480.0,0.00020547,2]
[380113365,1755549055761,-386.72,0.00020547,2]
[380113366,1755549055772,-358.58,0.00020547,2]
[380113367,1755549055781,-480.0,0.00020547,2]
[380113368,1755549055791,-471.1278582,0.00020547,2]
[380113369,1755549055802,-480.0,0.00020547,2]
[380113370,1755549055812,-480.0,0.00020547,2]
[380113371,1755549055821,-526.18,0.00020547,2]
[380113372,1755549055830,-2519.6,0.00020547,2]
[380113373,1755549055839,-480.0,0.00020547,2]
[380113374,1755549055848,-480.0,0.00020547,2]
[380113375,1755549055858,-480.0,0.00020547,2]
[380113376,1755549055867,-480.0,0.00020547,2]
[380113377,1755549055876,-480.0,0.00020547,2]
[380113378,1755549055886,-694.48,0.00020547,2]
[380113379,1755549055895,-480.0,0.00020547,2]
[380113380,1755549055904,-480.0,0.00020547,2]
[380113381,1755549055913,-553.82,0.00020547,2]
[380113382,1755549055923,-480.0,0.00020547,2]
[380113383,1755549055932,-480.0,0.00020547,2]
[380113384,1755549055942,-480.0,0.00020547,2]
[380113385,1755549055950,-697.94,0.00020547,2]
[380113386,1755549055960,-480.0,0.00020547,2]
[380113387,1755549055970,-480.0,0.00020547,2]
[380113388,1755549055979,-681.63,0.00020547,2]
[380113389,1755549055988,-579.69,0.00020547,2]
[380113390,1755549055999,-480.0,0.00020547,2]
[380113391,1755549056009,-480.0,0.00020547,2]
[380113392,1755549056018,-462.5911655,0.00020547,2]
[380113393,1755549056028,-547.29,0.00020547,2]
[380113394,1755549056037,-480.0,0.00020547,2]
[380113395,1755549056047,-2307.81,0.00020547,2]
[380113396,1755549056058,-480.0,0.00020547,2]
[380113397,1755549056067,-480.0,0.00020547,2]
[380113398,1755549056077,-480.0,0.00020547,2]
[380113399,1755549056087,-975.87,0.00020547,2]
[380113400,1755549056096,-480.0,0.00020547,2]
[380113401,1755549056106,-480.0,0.00020547,2]
[380113402,1755549056116,-579.91,0.00020547,2]
[380113403,1755549056126,-480.0,0.00020547,2]
[380113404,1755549056136,-983.25,0.00020547,2]
[380113405,1755549056145,-485.74997117,0.00020547,2]
[380113406,1755549056156,-480.0,0.00020547,2]
[380113407,1755549056169,-480.0,0.00020547,2]
[380113408,1755549056179,-227.87,0.00020547,2]
[380113409,1755549056188,-480.0,0.00020547,2]
[380113410,1755549056197,-480.0,0.00020547,2]
[380113411,1755549056209,-519.17,0.00020547,2]
[380113412,1755549056285,-480.0,0.00020547,2]
[380113413,1755549056294,-480.0,0.00020547,2]
[380113414,1755549056303,-480.0,0.00020547,2]
[380113415,1755549056312,-1116.2,0.00020547,2]
[380113416,1755549056322,-324.35,0.00020547,2]
[380113417,1755549056331,-508.63,0.00020547,2]
[380113418,1755549056341,-156.78,0.00020547,2]
[380113419,1755549056350,-519.74,0.00020547,2]
[380113420,1755549056359,-604.86,0.00020547,2]
[380113421,1755549056369,-480.0,0.00020547,2]
[380113422,1755549056378,-234.53,0.00020547,2]
[380113423,1755549056387,-170.25,0.00020547,2]
[380113424,1755549056396,-480.0,0.00020547,2]
[380113425,1755549056405,-480.0,0.00020547,2]
[380113426,1755549056414,-460.0,0.00020547,2]
[380113427,1755549056424,-480.0,0.00020547,2]
[380113428,1755549056433,-480.0,0.00020547,2]
[380113429,1755549056442,-609.99034147,0.00020547,2]
[380113430,1755549056452,-480.0,0.00020547,2]
[380113431,1755549056462,-480.0,0.00020547,2]
[380113432,1755549056471,-480.0,0.00020547,2]
[380113433,1755549056480,-1719.49,0.00020547,2]
[380113434,1755549056490,-480.0,0.00020547,2]
[380113435,1755549056499,-268.89586572,0.00020547,2]
[380113436,1755549056509,-480.0,0.00020547,2]
[380113437,1755549056519,-701.96,0.00020547,2]
[380113438,1755549056528,-480.0,0.00020547,2]
[380113439,1755549056537,-480.0,0.00020547,2]
[380113440,1755549056547,-480.0,0.00020547,2]
[380113441,1755549056556,-480.0,0.00020547,2]
[380113442,1755549056566,-420.0,0.00020709,2]
[380113443,1755549056575,-2967.29054176,0.00020731,2]
[380113444,1755549056585,-160.0,0.00020804,2]
[380113445,1755549056594,-232.18122251,0.00020804,2]
[380113446,1755549056604,-843.81736472,0.00020804,2]
[380113447,1755549056613,-375.82681177,0.00020804,2]
[380113448,1755549056623,-12683.78573522,0.00020804,2]
[380113449,1755549056632,-216.85420361,0.00020804,2]
[380113450,1755549056642,-160.0,0.00020804,2]
[380113451,1755549056652,-215.75323784,0.00020804,2]
[380113452,1755549056661,-160.0,0.00020804,2]
[380113453,1755549056671,-160.0,0.00020804,2]
[380113454,1755549056680,-480.0,0.00020821,2]
[380113455,1755549056690,-385.64,0.00020821,2]
[380113456,1755549056699,-480.0,0.00020821,2]
[380113457,1755549056708,-190.89,0.00020821,2]
[380113458,1755549056717,-480.0,0.00020821,2]
[380113459,1755549056726,-480.0,0.00020821,2]
[380113460,1755549056735,-480.0,0.00020821,2]
[380113461,1755549056744,-480.0,0.00020821,2]
[380113462,1755549056754,-480.0,0.00020821,2]
[380113463,1755549056764,-480.0,0.00020821,2]
[380113464,1755549056774,-267.38,0.00020821,2]
[380113465,1755549056783,-460.0,0.00020821,2]
[380113466,1755549056792,-480.0,0.00020821,2]
[380113467,1755549056802,-369.59,0.00020821,2]
[380113468,1755549056811,-480.0,0.00020821,2]
[380113469,1755549056820,-530.04,0.00020821,2]
[380113470,1755549056830,-480.0,0.00020821,2]
[380113471,1755549056839,-480.0,0.00020821,2]
[380113472,1755549056849,-480.0,0.00020821,2]
[380113473,1755549056858,-480.0,0.00020821,2]
[380113474,1755549056867,-577.84,0.00020821,2]
[380113475,1755549056876,-480.0,0.00020821,2]
[380113476,1755549056885,-480.0,0.00020821,2]
[380113477,1755549056894,-480.0,0.00020821,2]
[380113478,1755549056903,-480.0,0.00020821,2]
[380113479,1755549056913,-480.0,0.00020821,2]
[380113480,1755549056921,-480.0,0.00020821,2]
[380113481,1755549056930,-2519.6,0.00020821,2]
[380113482,1755549056939,-480.0,0.00020821,2]
[380113483,1755549056949,-383.81,0.00020821,2]
[380113484,1755549056958,-480.0,0.00020821,2]
[380113485,1755549056967,-480.0,0.00020821,2]
[380113486,1755549056976,-480.0,0.00020821,2]
[380113487,1755549056986,-694.48,0.00020821,2]
[380113488,1755549056995,-158.81,0.00020821,2]
[380113489,1755549057002,-480.0,0.00020821,2]
[380113490,1755549057011,-553.82,0.00020821,2]
[380113491,1755549057020,-480.0,0.00020821,2]
[380113492,1755549057029,-480.0,0.00020821,2]
[380113493,1755549057039,-480.0,0.00020821,2]
[380113494,1755549057049,-697.94,0.00020821,2]
[380113495,1755549057058,-480.0,0.00020821,2]
[380113496,1755549057067,-480.0,0.00020821,2]
[380113497,1755549057076,-681.63,0.00020821,2]
[380113498,1755549057085,-480.0,0.00020821,2]